lending/lending_fUSD_20250318
["ID","MTS","AMOUNT","RATE_DAILY","PERIOD"]
[356334007,1742287840709,-787.0,9.944e-05,2]
[356334008,1742287840718,-1429.0,9.944e-05,2]
[356334009,1742287840728,-541.0,9.944e-05,2]
[356334010,1742287840737,-1271.0,9.944e-05,2]
[356334011,1742287840749,-4081.0,9.944e-05,2]
[356334012,1742287840759,-907.0,9.944e-05,2]
[356334013,1742287840768,-3936.0,9.944e-05,2]
[356334014,1742287840778,-151.0,9.944e-05,2]
[356334015,1742287840787,-1013.0,9.944e-05,2]
[356334016,1742287840797,-150.0,9.944e-05,2]
[356334017,1742287840806,-500.0,9.954e-05,2]
[356334018,1742287840816,-500.0,9.982e-05,2]
[356334019,1742287840825,-150.0,9.99e-05,2]
[356334020,1742287840835,-500.0,0.00010009,2]
[356334021,1742287840845,-178.853,0.00010009,2]
[356334022,1742287840855,-2775.997,0.00010009,2]
[356334023,1742287840864,-500.0,0.00010036,2]
[356334024,1742287840874,-500.0,0.00010064,2]
[356334025,1742287840883,-1021.36237,0.00010082,2]
[356334026,1742287840894,-15116.2570677,0.00010083,2]
[356334027,1742287840903,-7223.360956,0.0001009,2]
[356334028,1742287840913,-500.0,0.00010091,2]
[356334029,1742287840922,-1216.0,0.00010096,2]
[356334030,1742287840932,-249.80000601,0.000101,2]
[356334031,1742287840941,-176.0,0.000101,2]
[356334032,1742287840951,-551.66169819,0.00010119,2]
[356334033,1742287840962,-1211.2460264,0.00010136,2]
[356334034,1742287840973,-158.82,0.00010207,2]
[356334035,1742287840983,-1267.71,0.00010273,2]
[356334036,1742287840992,-37913.63,0.000103,2]
[356334037,1742287841002,-850.0,0.000103,2]
[356334038,1742287841012,-434.20325015,0.00010301,2]
[356334039,1742287841022,-902.94,0.00010339,2]
[356334040,1742287841032,-305.84,0.00010339,2]
[356334041,1742287841042,-304.47,0.00010339,2]
[356334042,1742287841052,-6628.08459,0.0001035,2]
[356334043,1742287841062,-376.35212157,0.0001035,2]
[356334044,1742287841071,-1814.26734071,0.0001035,2]
[356334045,1742287841082,-627.2,0.00010366,2]
[356334046,1742287841091,-1000.0,0.0001037,2]
[356334047,1742287841102,-1000.0,0.0001037,2]
[356334048,1742287841111,-1000.0,0.0001037,2]
[356334049,1742287841121,-1000.0,0.0001037,2]
[356334050,1742287841130,-1411.45303996,0.000104,2]
[356334051,1742287841140,-500.0,0.00010426,2]
[356334052,1742287841150,-155.18623527,0.00010426,2]
[356334053,1742287841159,-2387.74,0.00010443,2]
[356334054,1742287841170,-1000.0,0.00010453,2]
[356334055,1742287841179,-941.0,0.00010466,2]
[356334056,1742287841189,-179.63444659,0.00010466,2]
[356334057,1742287841199,-298.7759788,0.00010466,2]
[356334058,1742287841208,-500.0,0.00010466,2]
[356334059,1742287841218,-1000.0,0.0001047,2]
[356334060,1742287841227,-500.0,0.0001047,2]
[356334061,1742287841237,-1000.0,0.0001047,2]
[356334062,1742287841247,-905.0780504,0.0001047,2]
[356334063,1742287841257,-941.0,0.00010493,2]
[356334064,1742287841266,-500.0,0.00010493,2]
[356334065,1742287841276,-300.0,0.000105,3]
[356334066,1742287841285,-530.04008,0.000105,3]
[356334067,1742287841295,-941.0,0.00010521,2]
[356334068,1742287841304,-734.64941555,0.00010521,2]
[356334069,1742287841314,-434.20325015,0.00010539,2]
[356334070,1742287841324,-1267.71,0.00010547,2]
[356334071,1742287841334,-941.0,0.00010548,2]
[356334072,1742287841344,-941.0,0.00010576,2]
[356334073,1742287841354,-920.99864038,0.000106,2]
[356334074,1742287841365,-941.0,0.00010603,2]
[356334075,1742287841375,-171.66,0.00010625,2]
[356334076,1742287841385,-941.0,0.0001063,2]
[356334077,1742287841395,-941.0,0.00010658,2]
[356334078,1742287841406,-941.0,0.00010685,2]
[356334079,1742287841415,-500.0,0.00010697,2]
[356334080,1742287841425,-500.0,0.00010697,2]
[356334081,1742287841434,-500.0,0.00010697,2]
[356334082,1742287841444,-500.0,0.00010697,2]
[356334083,1742287841454,-515.79777073,0.00010697,2]
[356334084,1742287841463,-500.0,0.00010697,2]
[356334085,1742287841473,-500.0,0.00010697,2]
[356334086,1742287841482,-500.0,0.00010697,2]
[356334087,1742287841491,-500.0,0.00010697,2]
[356334088,1742287841501,-500.0,0.00010697,2]
[356334089,1742287841511,-156.00590923,0.00010697,2]
[356334090,1742287841525,-177.89545768,0.00010697,2]
[356334091,1742287841534,-500.0,0.00010697,2]
[356334092,1742287841543,-550.0,0.00010697,2]
[356334093,1742287841554,-284.08571446,0.00010697,2]
[356334094,1742287841563,-275.6980813,0.00010697,2]
[356334095,1742287841573,-2595.711,0.00010698,2]
[356334096,1742287841582,-26217.7055,0.00010698,2]
[356334097,1742287841593,-257.93624813,0.000107,2]
[356334098,1742287841603,-525.85,0.000107,2]
[356334099,1742287841612,-941.0,0.00010713,2]
[356334100,1742287841622,-158.82,0.00010739,2]
[356334101,1742287841631,-941.0,0.0001074,2]
[356334102,1742287841640,-434.20325015,0.00010743,2]
[356334103,1742287841650,-941.0,0.00010767,2]
[356334104,1742287841659,-941.0,0.00010795,2]
[356334105,1742287841669,-5643.82276735,0.00010798,2]
[356334106,1742287841678,-5000.0,0.00010798,2]
[356334107,1742287841688,-5000.0,0.00010798,2]
[356334108,1742287841697,-5000.0,0.00010798,2]
[356334109,1742287841707,-5000.0,0.00010798,2]
[356334110,1742287841717,-988.13424052,0.000108,2]
[356334111,1742287841727,-1267.71,0.00010821,2]
[356334112,1742287841737,-941.0,0.00010822,2]
[356334113,1742287841746,-941.0,0.0001085,2]
[356334114,1742287841757,-941.0,0.00010877,2]
[356334115,1742287841766,-941.0,0.00010904,2]
[356334116,1742287841777,-941.0,0.00010932,2]
[356334117,1742287841787,-255.0,0.00010937,2]
[356334118,1742287841796,-200.0,0.00010959,2]
[356334119,1742287841806,-200.0,0.00010959,2]
[356334120,1742287841815,-200.0,0.00010959,2]
[356334121,1742287841825,-200.0,0.00010959,2]
[356334122,1742287841835,-150.0,0.00010959,2]
[356334123,1742287841845,-941.0,0.00010959,2]
[356334124,1742287841855,-945.92227539,0.00010987,2]
[356334125,1742287841864,-459.46606423,0.00010999,2]
[356334126,1742287841874,-8672.47487976,0.00011,2]
[356334127,1742287841885,-300.0,0.00011,2]
[356334128,1742287841895,-434.20325015,0.0001109,2]
[356334129,1742287841904,-1267.71,0.00011095,2]
[356334130,1742287841914,-63282.30646579,0.00011099,2]
[356334131,1742287841925,-154.328681,0.00011099,2]
[356334132,1742287841935,-250.0,0.00011184,2]
[356334133,1742287841944,-1216.0,0.00011218,2]
[356334134,1742287841953,-167.99,0.00011226,2]
[356334135,1742287841963,-158.82,0.00011271,2]
[356334136,1742287841973,-1267.71,0.00011369,2]
[356334137,1742287841983,-434.20325015,0.00011407,2]
[356334138,1742287841992,-2751.0,0.00011507,2]
[356334139,1742287842004,-627.2,0.00011517,2]
[356334140,1742287842013,-1000.0,0.00011614,2]
[356334141,1742287842023,-1267.71,0.00011643,2]
[356334142,1742287842032,-1267.71,0.00011917,2]
[356334143,1742287842042,-151.8331964,0.00012,2]
[356334144,1742287842052,-3594.43676411,0.00012,10]
[356334145,1742287842061,-433.0,0.00012031,2]
[356334146,1742287842070,-1267.71,0.00012191,2]
[356334147,1742287842079,-1236.47734174,0.000123,2]
[356334148,1742287842088,-1216.0,0.0001234,2]
[356334149,1742287842097,-368.0,0.000124,2]
[356334150,1742287842108,-751.0,0.000124,2]
[356334151,1742287842117,-127667.62729931,0.000124,2]
[356334152,1742287842127,-233.0,0.000124,2]
[356334153,1742287842136,-983.5,0.000124,2]
[356334154,1742287842145,-1267.71,0.00012465,2]
[356334155,1742287842155,-63282.30646577,0.00012499,2]
[356334156,1742287842164,-295.45657915,0.000125,2]
[356334157,1742287842173,-2387.74,0.00012667,2]
[356334158,1742287842183,-627.2,0.00012669,2]
[356334159,1742287842192,-1267.71,0.00012739,2]
[356334160,1742287842203,-1000.0,0.00012776,2]
[356334161,1742287842212,-418.42,0.00012901,2]
[356334162,1742287842222,-150.0,0.00012924,2]
[356334163,1742287842231,-2034.0,0.00012944,2]
[356334164,1742287842241,-1280.0,0.00012944,2]
[356334165,1742287842251,-641.0,0.00012944,2]
[356334166,1742287842261,-571.0,0.00012944,2]
[356334167,1742287842270,-1419.0,0.00012944,2]
[356334168,1742287842279,-787.0,0.00012944,2]
[356334169,1742287842489,-1429.0,0.00012944,2]
[356334170,1742287842502,-541.0,0.00012944,2]
[356334171,1742287842512,-1271.0,0.00012944,2]
[356334172,1742287842523,-4081.0,0.00012944,2]
[356334173,1742287842533,-907.0,0.00012944,2]
[356334174,1742287842543,-3936.0,0.00012944,2]
[356334175,1742287842552,-151.0,0.00012944,2]
[356334176,1742287842563,-1013.0,0.00012944,2]
[356334177,1742287842573,-1000.0,0.0001297,2]
[356334178,1742287842582,-500.0,0.0001297,2]
[356334179,1742287842592,-700.0,0.00012972,2]
[356334180,1742287842605,-4251.65004047,0.00013,2]
[356334181,1742287842615,-3046.48336929,0.00013,2]
[356334182,1742287842624,-350.0,0.00013,2]
[356334183,1742287842634,-1267.71,0.00013013,2]
[356334184,1742287842644,-5133.80615779,0.0001305,2]
[356334185,1742287842653,-736.0,0.00013234,2]
[356334186,1742287842663,-1267.71,0.00013287,2]
[356334187,1742287842672,-301.72,0.00013358,2]
[356334188,1742287842681,-48384.18707979,0.00013368,2]
[356334189,1742287842691,-1216.0,0.00013462,2]
[356334190,1742287842700,-167.99,0.00013471,2]
[356334191,1742287842709,-1000.0,0.000135,2]
[356334192,1742287842719,-1267.71,0.00013561,2]
[356334193,1742287842729,-4904.05,0.00013599,2]
[356334194,1742287842738,-567.97930943,0.00013599,2]
[356334195,1742287842747,-301.72,0.00013689,2]
[356334196,1742287842758,-301.72,0.00013689,2]
[356334197,1742287842767,-2534.74,0.00013699,2]
[356334198,1742287842777,-2534.74,0.00013699,2]
[356334199,1742287842786,-2534.74,0.00013699,2]
[356334200,1742287842796,-2534.74,0.00013699,2]
[356334201,1742287842805,-2534.74,0.00013699,2]
[356334202,1742287842814,-2534.74,0.00013699,2]
[356334203,1742287842824,-2534.74,0.00013699,2]
[356334204,1742287842834,-2534.74,0.00013699,2]
[356334205,1742287842843,-2534.74,0.00013699,2]
[356334206,1742287842852,-2534.74,0.00013699,2]
[356334207,1742287842862,-2534.74,0.00013699,2]
[356334208,1742287842871,-2534.74,0.00013699,2]
[356334209,1742287842880,-2534.74,0.00013699,2]
[356334210,1742287842889,-2534.74,0.00013699,2]
[356334211,1742287842898,-2534.74,0.00013699,2]
[356334212,1742287842907,-2534.74,0.00013699,2]
[356334213,1742287842917,-2534.74,0.00013699,2]
[356334214,1742287842927,-2534.74,0.00013699,2]
[356334215,1742287842936,-2534.74,0.00013699,2]
[356334216,1742287842945,-2534.8687502,0.00013699,2]
[356334217,1742287842954,-2572.48,0.00013699,2]
[356334218,1742287842963,-2572.48,0.00013699,2]
[356334219,1742287842972,-2572.48,0.00013699,2]
[356334220,1742287842982,-2572.48,0.00013699,2]
[356334221,1742287842991,-2572.48,0.00013699,2]
[356334222,1742287843001,-2572.48,0.00013699,2]
[356334223,1742287843011,-2572.48,0.00013699,2]
[356334224,1742287843022,-2572.48,0.00013699,2]
[356334225,1742287843031,-2572.48,0.00013699,2]
[356334226,1742287843041,-2572.48,0.00013699,2]
[356334227,1742287843050,-2572.48,0.00013699,2]
[356334228,1742287843059,-2572.48,0.00013699,2]
[356334229,1742287843068,-2572.48,0.00013699,2]
[356334230,1742287843077,-2572.48,0.00013699,2]
[356334231,1742287843087,-2572.48,0.00013699,2]
[356334232,1742287843096,-2572.48,0.00013699,2]
[356334233,1742287843106,-2572.48,0.00013699,2]
[356334234,1742287843116,-2572.48,0.00013699,2]
[356334235,1742287843125,-2572.48,0.00013699,2]
[356334236,1742287843135,-2572.57324159,0.00013699,2]
[356334237,1742287843144,-158.64,0.00013699,2]
[356334238,1742287843154,-158.64,0.00013699,2]
[356334240,1742287843163,-158.64,0.00013699,2]
[356334241,1742287843173,-158.64,0.00013699,2]
[356334242,1742287843182,-158.66150699,0.00013699,2]
[356334243,1742287843191,-153.0,0.00013699,2]
[356334244,1742287843200,-500.0,0.00013699,2]
[356334245,1742287843210,-200.0,0.00013699,2]
[356334246,1742287843219,-27464.59,0.00013699,2]
[356334247,1742287843228,-15390.23,0.00013699,2]
[356334248,1742287843238,-31347.71,0.00013699,2]
[356334249,1742287843247,-751.3,0.00013699,2]
[356334250,1742287843256,-500.0,0.00013699,2]
[356334251,1742287843266,-317.29157555,0.00013699,2]
[356334252,1742287843275,-500.0,0.00013699,2]
[356334253,1742287843285,-626.22136559,0.00013699,2]
[356334254,1742287843295,-500.0,0.00013699,2]
[356334255,1742287843305,-161.01433909,0.00013699,2]
[356334256,1742287843314,-213.20133772,0.00013699,2]
[356334257,1742287843324,-453.00970063,0.00013699,2]
[356334258,1742287843334,-300.47963801,0.00013699,2]
[356334259,1742287843344,-500.0,0.00013699,2]
[356334260,1742287843353,-500.0,0.00013699,2]
[356334261,1742287843365,-646.2070029,0.00013699,2]
[356334262,1742287843375,-500.0,0.00013699,2]
[356334263,1742287843385,-561.88448467,0.00013699,2]
[356334264,1742287843395,-265.11966854,0.00013699,2]
[356334265,1742287843405,-151.36935594,0.00013699,2]
[356334266,1742287843415,-151.31444935,0.00013699,2]
[356334267,1742287843424,-500.0,0.00013699,2]
[356334268,1742287843434,-152.6634415,0.00013699,2]
[356334269,1742287843443,-151.43879093,0.00013699,2]
[356334270,1742287843453,-158.38524648,0.00013699,2]
[356334271,1742287843462,-500.0,0.00013699,2]
[356334272,1742287843472,-500.0,0.00013699,2]
[356334273,1742287843482,-500.0,0.00013699,2]
[356334274,1742287843492,-500.0,0.00013699,2]
[356334275,1742287843502,-500.0,0.00013699,2]
[356334276,1742287843513,-500.0,0.00013699,2]
[356334277,1742287843525,-500.0,0.00013699,2]
[356334278,1742287843539,-500.0,0.00013699,2]
[356334279,1742287843549,-500.0,0.00013699,2]
[356334280,1742287843559,-500.0,0.00013699,2]
[356334281,1742287843570,-500.0,0.00013699,2]
[356334282,1742287843579,-500.0,0.00013699,2]
[356334283,1742287843589,-500.0,0.00013699,2]
[356334284,1742287843599,-500.0,0.00013699,2]
[356334285,1742287843609,-500.0,0.00013699,2]
[356334286,1742287843618,-500.0,0.00013699,2]
[356334287,1742287843628,-500.0,0.00013699,2]
[356334288,1742287843638,-500.0,0.00013699,2]
[356334289,1742287843648,-500.0,0.00013699,2]
[356334290,1742287843658,-500.0,0.00013699,2]
[356334291,1742287843668,-500.0,0.00013699,2]
[356334293,1742287843678,-500.0,0.00013699,2]
[356334295,1742287843687,-500.0,0.00013699,2]
[356334297,1742287843696,-500.0,0.00013699,2]
[356334300,1742287843715,-500.0,0.00013699,2]
[356334303,1742287843731,-500.0,0.00013699,2]
[356334306,1742287843753,-500.0,0.00013699,2]
[356334309,1742287843772,-500.0,0.00013699,2]
[356334312,1742287843789,-500.0,0.00013699,2]
[356334314,1742287843806,-500.0,0.00013699,2]
[356334317,1742287843824,-500.0,0.00013699,2]
[356334320,1742287843844,-500.0,0.00013699,2]
[356334324,1742287843864,-500.0,0.00013699,2]
[356334326,1742287843881,-500.0,0.00013699,2]
[356334329,1742287843901,-500.0,0.00013699,2]
[356334332,1742287843917,-500.0,0.00013699,2]
[356334334,1742287843932,-500.0,0.00013699,2]
[356334337,1742287843949,-500.0,0.00013699,2]
[356334340,1742287843964,-500.0,0.00013699,2]
[356334342,1742287843981,-500.0,0.00013699,2]
[356334345,1742287843996,-500.0,0.00013699,2]
[356334347,1742287844012,-500.0,0.00013699,2]
[356334350,1742287844029,-500.0,0.00013699,2]
[356334353,1742287844045,-500.0,0.00013699,2]
[356334356,1742287844067,-500.0,0.00013699,2]
[356334358,1742287844082,-500.0,0.00013699,2]
[356334361,1742287844096,-500.0,0.00013699,2]
[356334364,1742287844112,-500.0,0.00013699,2]
[356334366,1742287844126,-500.0,0.00013699,2]
[356334369,1742287844141,-500.0,0.00013699,2]
[356334371,1742287844156,-500.0,0.00013699,2]
[356334374,1742287844172,-500.0,0.00013699,2]
[356334376,1742287844192,-500.0,0.00013699,2]
[356334379,1742287844207,-500.0,0.00013699,2]
[356334381,1742287844222,-443.29835531,0.00013699,2]
[356334384,1742287844237,-500.0,0.00013699,2]
[356334386,1742287844251,-500.0,0.000137,2]
[356334389,1742287844266,-14158.22,0.000137,2]
[356334391,1742287844280,-14158.22,0.000137,2]
[356334394,1742287844296,-627.2,0.00013821,2]
[356334397,1742287844310,-1267.71,0.00013835,2]
[356334399,1742287844325,-1000.0,0.00013937,2]
[356334402,1742287844340,-3981.20056115,0.00014,2]
[356334404,1742287844354,-1040.0,0.00014,2]
[356334407,1742287844369,-1267.71,0.00014109,2]
[356334409,1742287844384,-1000.0,0.000142,2]
[356334412,1742287844399,-1000.0,0.000142,2]
[356334414,1742287844412,-1000.0,0.000142,2]
[356334417,1742287844427,-539.34,0.000142,2]
[356334419,1742287844441,-567.97930941,0.0001425,2]
[356334422,1742287844456,-700.0,0.00014342,2]
[356334425,1742287844471,-301.72,0.00014357,2]
[356334427,1742287844487,-301.72,0.00014357,2]
[356334430,1742287844503,-127667.62729929,0.00014367,2]
[356334432,1742287844517,-1267.71,0.00014383,2]
[356334434,1742287844535,-9898.41364374,0.0001439,2]
[356334437,1742287844550,-152.0,0.00014421,3]
[356334440,1742287844565,-1252.0,0.00014556,2]
[356334442,1742287844580,-63282.30646577,0.00014655,2]
[356334445,1742287844595,-1267.71,0.00014657,2]
[356334447,1742287844609,-947.94,0.00014785,2]
[356334450,1742287844624,-300.0,0.000148,5]
[356334453,1742287844639,-7299.73608288,0.00014875,2]
[356334455,1742287844653,-2387.74,0.00014891,2]
[356334458,1742287844668,-1512.32525694,0.000149,2]
[356334460,1742287844681,-158.47579151,0.000149,2]
[356334463,1742287844697,-600.0,0.000149,5]
[356334465,1742287844712,-567.97930941,0.000149,2]
[356334468,1742287844727,-301.72,0.00014921,2]
[356334470,1742287844741,-1267.71,0.00014931,2]
[356334473,1742287844757,-301.72,0.0001499,2]
[356334475,1742287844770,-301.72,0.0001499,2]
[356334478,1742287844785,-3340.499,0.00015,2]
[356334480,1742287844799,-800.0,0.00015,2]
[356334483,1742287844813,-1965.91604894,0.00015,2]
[356334486,1742287844826,-7652.27045054,0.00015,2]
[356334488,1742287844840,-18196.73778728,0.00015,2]
[356334491,1742287844854,-7500.0,0.00015,2]
[356334493,1742287844868,-178191.33323254,0.00015,2]
[356334495,1742287844882,-400.0,0.00015,2]
[356334498,1742287844896,-24325.36147542,0.00015,2]
[356334501,1742287844911,-153.00943709,0.00015,20]
[356334503,1742287844925,-300.0,0.00015068,2]
[356334505,1742287844939,-1021.36237,0.00015082,2]
[356334508,1742287844953,-350.0,0.000151,2]
[356334510,1742287844966,-500.0,0.00015164,2]
[356334513,1742287844982,-500.0,0.00015164,2]
[356334516,1742287844996,-1267.71,0.00015205,2]
[356334517,1742287845012,-459.46606422,0.00015271,2]
[356334518,1742287845026,-1517.64,0.000153,2]
[356334519,1742287845043,-16023.80863009,0.000154,2]
[356334520,1742287845058,-487.29529236,0.000154,2]
[356334521,1742287845073,-1267.71,0.00015479,2]
[356334522,1742287845087,-301.72,0.00015485,2]
[356334523,1742287845102,-113535.0,0.00015494,2]
[356334524,1742287845116,-301.72,0.00015702,2]
[356334525,1742287845131,-700.0,0.00015712,2]
[356334526,1742287845146,-1267.71,0.00015753,2]
[356334527,1742287845161,-1007.42821328,0.00015866,2]
[356334528,1742287845176,-1000.0,0.00015905,2]
[356334529,1742287845190,-152.0,0.00015906,4]
[356334530,1742287845205,-150.0,0.00015924,2]
[356334531,1742287845220,-2034.0,0.00015944,2]
[356334532,1742287845233,-1280.0,0.00015944,2]
[356334533,1742287845247,-641.0,0.00015944,2]
[356334534,1742287845263,-571.0,0.00015944,2]
[356334535,1742287845277,-1419.0,0.00015944,2]
[356334536,1742287845290,-787.0,0.00015944,2]
[356334537,1742287845304,-1429.0,0.00015944,2]
[356334538,1742287845318,-541.0,0.00015944,2]
[356334539,1742287845332,-1271.0,0.00015944,2]
[356334540,1742287845345,-4081.0,0.00015944,2]
[356334541,1742287845360,-907.0,0.00015944,2]
[356334542,1742287845374,-3936.0,0.00015944,2]
[356334543,1742287845389,-151.0,0.00015944,2]
[356334544,1742287845403,-1013.0,0.00015944,2]
[356334545,1742287845417,-1000.0,0.0001597,2]
[356334546,1742287845432,-500.0,0.0001597,2]
[356334547,1742287845447,-15000.0,0.00016,2]
[356334548,1742287845463,-4532.1628483,0.00016,2]
[356334549,1742287845477,-7500.0,0.00016,2]
[356334550,1742287845493,-27871.74815797,0.00016,2]
[356334551,1742287845507,-1267.71,0.00016027,2]
[356334552,1742287845526,-4038.32,0.00016116,2]
[356334553,1742287845542,-394.26767669,0.00016126,2]
[356334554,1742287845557,-204.9,0.000162,2]
[356334555,1742287845575,-150.0,0.00016288,2]
[356334556,1742287845590,-1267.93561186,0.00016301,2]
[356334557,1742287845896,-301.72,0.00016324,2]
[356334558,1742287845928,-301.72,0.00016324,2]
[356334559,1742287845941,-127667.62729929,0.00016334,2]
[356334560,1742287845951,-200.0,0.0001634,2]
[356334561,1742287845961,-11949.57,0.00016411,2]
[356334562,1742287845972,-300.0,0.00016438,2]
[356334563,1742287845982,-202.31,0.00016438,2]
[356334564,1742287845992,-1000.0,0.0001647,2]
[356334565,1742287846003,-500.0,0.0001647,2]
[356334566,1742287846013,-500.0,0.00016534,2]
[356334567,1742287846023,-1000.0,0.000166,2]
[356334568,1742287846034,-1000.0,0.000166,2]
[356334569,1742287846043,-1000.0,0.000166,2]
[356334570,1742287846055,-1000.0,0.000166,2]
[356334571,1742287846065,-1000.0,0.000166,2]
[356334572,1742287846077,-1000.0,0.000166,2]
[356334573,1742287846086,-500.0,0.0001668,19]
[356334574,1742287846095,-179.23506194,0.00016685,2]
[356334575,1742287846105,-187.99,0.00016712,2]
[356334576,1742287846114,-920.99864036,0.00016734,2]
[356334578,1742287846123,-179.23506194,0.00016767,2]
[356334579,1742287846137,-1577.56,0.000168,7]
[356334580,1742287846147,-301.72,0.00016801,2]
[356334581,1742287846157,-63282.30646577,0.00016811,2]
[356334582,1742287846166,-179.23506194,0.00016849,2]
[356334583,1742287846176,-500.0,0.0001688,18]
[356334584,1742287846185,-751.3,0.00016895,2]
[356334585,1742287846195,-179.23506194,0.00016932,2]
[356334586,1742287846204,-7500.0,0.00017,2]
[356334587,1742287846214,-450.0,0.00017,2]
[356334588,1742287846224,-179.23506194,0.00017014,2]
[356334589,1742287846234,-700.0,0.00017082,2]
[356334590,1742287846244,-179.23506194,0.00017096,2]
[356334591,1742287846254,-2387.74,0.00017115,2]
[356334592,1742287846264,-179.23506194,0.00017178,2]
[356334593,1742287846275,-179.23506194,0.00017233,2]
[356334594,1742287846285,-1000.0,0.00017313,2]
[356334595,1742287846295,-179.23506194,0.00017315,2]
[356334596,1742287846306,-152.0,0.00017392,5]
[356334597,1742287846315,-269.33359851,0.00017392,5]
[356334598,1742287846326,-179.23506194,0.00017397,2]
[356334599,1742287846335,-179.23506194,0.00017479,2]
[356334600,1742287846345,-1000.0,0.00017509,2]
[356334601,1742287846356,-1000.0,0.00017555,5]
[356334602,1742287846367,-179.23506194,0.00017562,2]
[356334603,1742287846377,-1000.0,0.00017583,2]
[356334604,1742287846388,-1000.0,0.00017654,2]
[356334605,1742287846398,-1000.0,0.00017739,2]
[356334606,1742287846409,-600.0,0.00017808,2]
[356334607,1742287846419,-1000.0,0.00017898,2]
[356334608,1742287846430,-500.0,0.00017904,2]
[356334609,1742287846440,-500.0,0.00018,2]
[356334610,1742287846451,-1140.82218665,0.00018,2]
[356334611,1742287846461,-7315.11,0.00018,2]
[356334612,1742287846472,-4087.0,0.00018,10]
[356334613,1742287846482,-1000.0,0.00018022,2]
[356334614,1742287846496,-1000.0,0.00018035,2]
[356334615,1742287846507,-200.0,0.00018082,2]
[356334616,1742287846520,-150.0,0.00018084,2]
[356334617,1742287846534,-1706.05412781,0.000181,2]
[356334618,1742287846544,-1000.0,0.00018227,2]
[356334619,1742287846555,-1000.0,0.00018244,2]
[356334620,1742287846567,-327.59310849,0.00018257,2]
[356334621,1742287846577,-3000.0,0.00018263,2]
[356334622,1742287846587,-300.0,0.00018263,2]
[356334623,1742287846598,-1000.0,0.0001827,2]
[356334624,1742287846610,-5205.41458134,0.00018286,2]
[356334625,1742287846620,-301.72,0.00018291,2]
[356334626,1742287846631,-301.72,0.00018291,2]
[356334627,1742287846642,-150.0,0.00018295,2]
[356334628,1742287846652,-127667.62729929,0.00018301,2]
[356334629,1742287846662,-1000.0,0.00018319,2]
[356334630,1742287846672,-1000.0,0.00018323,2]
[356334631,1742287846683,-1000.0,0.00018351,2]
[356334632,1742287846693,-7500.0,0.00018353,2]
[356334633,1742287846703,-150.0,0.00018385,2]
[356334634,1742287846714,-1000.0,0.00018443,2]
[356334635,1742287846723,-150.0,0.00018447,2]
[356334636,1742287846733,-150.0,0.00018482,2]
[356334637,1742287846743,-150.0,0.000185,2]
[356334638,1742287846754,-150.0,0.00018526,2]
[356334639,1742287846765,-1000.0,0.00018566,2]
[356334640,1742287846775,-1000.0,0.00018576,2]
[356334641,1742287846785,-157.65,0.000186,2]
[356334642,1742287846795,-157.65,0.000186,2]
[356334643,1742287846806,-904.64511232,0.0001862,2]
[356334644,1742287846816,-1000.0,0.00018625,2]
[356334645,1742287846826,-1000.0,0.00018631,2]
[356334646,1742287846836,-150.0,0.00018678,2]